bitfinex/quotes_ETHUSD_20241203
["timestamp","ask_amount","ask_price","bid_price","bid_amount"]
[1733240130041,0.3392,3573.6,3572.8,2.7989]
[1733240130580,0.3392,3573.6,3572.9,2.79877]
[1733240130740,0.3392,3573.6,3572.6,2.79902]
[1733240130942,0.3392,3573.6,3572.2,2.79932]
[1733240131184,0.3392,3573.6,3572.7,2.79899]
[1733240131754,0.3392,3573.6,3572.7,1.5547]
[1733240131954,0.05207388,3573.5,3572.7,4.35368]
[1733240132152,0.05207388,3573.5,3572.7,1.5547]
[1733240132773,2.79825,3573.7,3572.7,1.5547]
[1733240132976,0.05123397,3573.4,3572.7,1.5547]
[1733240133144,0.05129176,3573.6,3572.7,1.5547]
[1733240133338,2.7982,3573.8,3572.7,1.5547]
[1733240133565,0.0513405,3573.7,3572.7,1.5547]
[1733240133812,0.0513405,3573.7,3573.0,2.79872]
[1733240133968,0.59566447,3574.0,3572.7,1.71017]
[1733240133969,0.3392,3574.0,3573.2,2.79857]
[1733240134179,0.3392,3574.0,3572.7,1.71017]
[1733240134376,0.88296013,3574.8,3572.7,1.71017]
[1733240134377,0.04955635,3573.9,3572.7,1.71017]
[1733240134600,0.25648649,3574.6,3572.7,1.71017]
[1733240134907,0.03497382,3574.5,3573.6,2.79828]
[1733240135063,2.88252765,3574.5,3572.9,1.5862]
[1733240135265,0.25648649,3574.4,3573.5,2.79837]
[1733240135509,0.51190012,3574.5,3573.6,1.5862]
[1733240135679,0.05013856,3574.3,3573.7,2.79819]
[1733240136007,0.05024042,3574.2,3573.8,2.7981]
[1733240136210,0.05024042,3574.2,3573.6,4.38448]
[1733240136370,0.29190626,3574.8,3572.3,1.6261]
[1733240136371,0.25648649,3574.6,3572.3,1.6261]
[1733240136564,0.3392,3574.0,3572.3,1.6261]
[1733240136810,0.3392,3573.1,3571.9,1.6261]
[1733240137103,0.3392,3573.8,3572.2,1.6261]
[1733240137558,0.25648649,3574.2,3572.5,1.6261]
[1733240137709,0.25648649,3574.2,3572.4,4.56111561]
[1733240137710,0.25648649,3574.4,3573.5,1.6261]
[1733240137864,0.04741406,3574.1,3574.0,2.79798]
[1733240138179,0.29190626,3574.8,3573.5,1.6261]
[1733240138180,0.29190626,3574.8,3573.6,2.79829]
[1733240138505,0.29190626,3574.8,3574.6,4.33004]
[1733240138717,0.25648649,3575.6,3574.6,1.5326]
[1733240138918,0.41037838,3576.2,3574.6,1.5326]
[1733240139213,0.25718615,3576.2,3575.3,2.79693]
[1733240139365,0.158333,3576.3,3574.6,1.5326]
[1733240139566,0.158333,3576.3,3574.9,1.5326]
[1733240140035,0.04278838,3576.2,3575.5,2.7968]
[1733240140302,0.04278838,3576.2,3575.0,2.7972]
[1733240140303,0.04278838,3576.2,3575.4,2.79687]
[1733240140506,0.04278838,3576.2,3575.5,2.7968]
[1733240140705,0.04278838,3576.2,3574.9,1.5326]
[1733240140911,0.04278838,3576.2,3574.9,4.82180816]
[1733240141082,0.3392,3575.9,3573.9,4.36111561]
[1733240141268,0.3392,3575.9,3574.4,1.5606]
[1733240141464,0.0423711,3575.8,3574.6,2.79751]
[1733240141663,0.0423711,3575.8,3574.7,2.79743]
[1733240141921,0.158333,3576.3,3574.4,1.5606]
[1733240141922,0.497533,3576.3,3574.8,0.279743]
[1733240142064,0.04234887,3575.7,3575.0,2.7972]
[1733240142268,0.497533,3576.3,3574.9,1.5902]
[1733240142511,0.497533,3576.3,3575.3,2.79693]
[1733240142709,0.497533,3576.3,3574.9,1.5902]
[1733240142710,0.04257495,3576.2,3575.4,2.79687]
[1733240143004,0.04257495,3576.2,3574.9,4.38742]
[1733240143216,0.04257495,3576.2,3575.2,2.79701]
[1733240143422,0.55,3576.1,3575.0,2.79719]
[1733240143569,0.55,3576.2,3575.0,2.79719]
[1733240143773,3.293713,3576.3,3574.9,1.5902]
[1733240143774,0.04332676,3576.1,3574.9,1.5902]
[1733240144295,0.04332676,3576.1,3575.6,2.79669]
[1733240144610,0.497533,3576.3,3575.6,2.79665]
[1733240144987,0.0433433,3576.2,3575.4,2.79687]
[1733240145210,0.0433433,3576.2,3575.0,0.56020871]
[1733240145448,0.0433433,3576.2,3575.0,1.05497758]
[1733240145739,0.0433433,3576.2,3575.4,2.79682]
[1733240145953,0.0433433,3576.2,3575.2,2.79704]
[1733240146254,0.55,3575.9,3574.4,4.29803]
[1733240146458,0.55,3575.9,3572.9,4.36111561]
[1733240146459,0.55,3575.4,3574.2,2.79778]
[1733240146741,0.55,3575.2,3573.9,2.79802]
[1733240146944,0.55,3575.2,3574.2,2.79779]
[1733240147240,0.55,3575.2,3573.9,0.279802]
[1733240147241,0.04299854,3575.1,3573.9,0.279802]
[1733240147444,0.04299854,3575.1,3573.8,0.57135018]
[1733240147611,0.04299854,3575.1,3574.6,2.79743]
[1733240147801,0.04299854,3575.1,3574.1,2.7979]
[1733240148000,0.3392,3576.0,3575.3,2.79696]
[1733240148356,0.04284485,3575.9,3574.5,0.57163011]
[1733240148646,0.04284485,3575.9,3575.3,2.79694]
[1733240148864,0.04284485,3575.9,3575.4,2.79688]
[1733240149044,0.04284485,3575.9,3574.6,2.79751]
[1733240149251,0.04284485,3575.9,3575.3,2.79689]
[1733240149557,0.04262402,3575.8,3575.5,2.7968]
[1733240149762,0.3392,3576.0,3575.5,2.7968]
[1733240149936,0.3392,3576.5,3574.7,1.99311401]
[1733240150140,0.3392,3576.5,3574.8,2.79735]
[1733240150455,0.04276587,3576.2,3575.7,2.79664]
[1733240150620,0.04276587,3576.2,3574.9,0.4790464]
[1733240150817,0.25717539,3576.9,3575.3,2.79696]
[1733240151017,0.04286661,3576.1,3575.2,1.6413]
[1733240151222,3.13485,3577.0,3575.5,2.79674]
[1733240151462,0.04291815,3576.0,3575.5,2.79674]
[1733240151762,0.2923114,3576.9,3575.2,1.6413]
[1733240151962,0.3392,3577.0,3575.9,2.79647]
[1733240152164,2.79572,3576.9,3575.7,2.79665]
[1733240152322,0.04298907,3576.2,3575.7,2.79665]
[1733240152524,0.04298907,3576.2,3576.0,2.79635]
[1733240152724,0.3392,3577.0,3575.7,0.5459807]
[1733240153062,0.3392,3577.0,3575.7,3.67684777]
[1733240153220,0.3392,3577.0,3576.0,2.79638]
[1733240153422,0.3392,3577.0,3576.2,2.79626]
[1733240156123,0.80309864,3577.5,3576.2,2.79626]
[1733240156342,0.25763945,3577.4,3576.2,2.79626]
[1733240156637,0.25798675,3577.4,3576.2,5.79626]
[1733240156966,0.59718675,3577.5,3576.2,5.79626]
[1733240157270,0.25798675,3577.4,3576.2,5.79626]
[1733240157434,0.25798675,3577.3,3576.2,5.79626]
[1733240157626,0.25798675,3577.4,3576.2,5.79626]
[1733240157827,0.25798675,3577.3,3576.2,5.79626]
[1733240158139,0.25819204,3577.2,3576.2,5.79626]
[1733240158319,0.25819204,3577.1,3576.2,5.79626]
[1733240158525,0.25819204,3577.3,3576.2,2.79626]
[1733240158872,0.25819204,3577.2,3576.2,2.79626]
[1733240159019,0.25819204,3577.2,3576.2,6.520369]
[1733240159224,0.54545919,3577.5,3576.2,6.520369]
[1733240159225,0.25819204,3577.4,3576.2,6.520369]
[1733240159419,0.25819204,3577.3,3576.2,6.520369]
[1733240159665,3e-06,3576.3,3576.2,6.520369]
[1733240161444,3e-06,3576.3,3576.2,8.042869]
[1733240161639,0.25861161,3578.3,3577.2,1.5225]
[1733240161859,0.3392,3578.4,3577.2,1.5225]
[1733240162180,0.3392,3578.4,3577.8,2.79498]
[1733240162181,0.04014548,3578.3,3577.8,2.79498]
[1733240162354,0.04014548,3578.3,3578.0,2.79485]
[1733240162565,0.04014548,3578.3,3577.3,0.15225]
[1733240162566,0.04014548,3578.3,3578.2,2.7947]
[1733240162728,0.25868043,3578.8,3578.2,4.3172]
[1733240162925,0.25868051,3579.1,3578.2,1.95422]
[1733240163120,0.3392,3579.2,3578.2,0.7882405]
[1733240163335,0.3392,3579.2,3577.9,0.556224]
[1733240163336,0.04084666,3579.1,3577.9,0.556224]
[1733240163538,2.7941,3579.0,3577.9,3.351134]
[1733240163760,2.86986382,3578.9,3577.7,2.79506]
[1733240164068,2.86986382,3578.9,3576.5,2.89595]
[1733240164069,1.5052,3578.8,3577.2,3.0]
[1733240164223,2.79498,3577.9,3577.1,0.56848007]
[1733240164427,0.29373343,3578.7,3577.1,0.56848007]
[1733240164428,0.55,3577.7,3577.1,0.56848007]
[1733240164630,0.55,3577.5,3576.5,2.79602]
[1733240164979,0.04031543,3577.6,3576.5,0.279602]
[1733240165144,1.5052,3577.8,3576.4,0.5563919]
[1733240165145,0.04024457,3577.4,3576.4,0.5563919]
[1733240165324,1.5052,3577.8,3576.4,0.5563919]
[1733240165669,1.5052,3578.3,3577.8,2.79499]
[1733240165886,7.15475561,3579.6,3577.6,2.79516]
[1733240165887,0.04060023,3577.7,3577.6,2.79516]
[1733240166166,0.43092316,3579.4,3577.6,2.79516]
[1733240166167,0.25864878,3578.9,3577.6,2.10492007]
[1733240166326,1.5052,3579.1,3578.8,2.79423]
[1733240166526,1.5052,3579.1,3578.6,2.79434]
[1733240166825,1.5052,3579.1,3577.8,3.0]
[1733240167038,1.5052,3579.1,3577.7,0.21049201]
[1733240167327,1.5052,3579.1,3578.7,2.79428]
[1733240167537,1.5052,3579.1,3578.7,2.79429]
[1733240167781,1.5052,3579.1,3578.4,2.79453]
[1733240167981,1.5052,3579.1,3578.4,2.79451]
[1733240168184,0.03833688,3579.0,3578.3,0.56458357]
[1733240168386,0.03833688,3579.0,3578.0,2.79482]
[1733240168676,0.03833688,3579.0,3577.9,3.0]
[1733240168677,0.25918019,3578.9,3577.9,3.0]
[1733240168872,0.25918019,3578.9,3577.6,4.5541]
[1733240168873,0.03833688,3579.0,3577.7,2.79509]
[1733240169077,1.5052,3578.6,3577.0,1.5414]
[1733240169384,2.79463,3578.3,3577.2,0.5664299]
[1733240169587,0.84762463,3578.5,3577.2,0.5664299]
[1733240169588,3.38285267,3578.5,3577.2,0.5664299]
[1733240169897,4.5052,3578.6,3577.2,0.5664299]
[1733240169898,0.03899446,3578.2,3577.3,2.7954]
[1733240170101,0.0390653,3578.4,3577.3,2.7954]
[1733240170318,0.55,3578.5,3577.2,0.5664299]
[1733240170514,0.55,3578.5,3576.4,2.79604]
[1733240170515,1.5052,3577.8,3576.6,1.5824]
[1733240170829,0.03734224,3577.7,3576.9,0.56670964]
[1733240171018,1.5052,3578.1,3576.9,0.56670964]
[1733240171019,1.5052,3578.1,3577.5,2.79523]
[1733240171221,2.79383,3579.4,3578.1,2.7947]
[1733240171393,2.79401,3579.1,3577.6,2.79512]
[1733240171743,1.5052,3578.9,3578.0,2.79484]
[1733240171945,1.5052,3578.4,3577.0,4.5443]
[1733240172234,0.25922473,3578.3,3577.6,2.79514]
[1733240172455,0.25922473,3578.3,3577.1,0.75443]
[1733240172456,0.29660177,3578.3,3578.2,2.7947]
[1733240172741,0.03737704,3578.3,3577.9,2.79487]
[1733240172923,1.5052,3578.8,3577.4,0.57264518]
[1733240173129,1.5052,3578.6,3576.7,3.0]
[1733240173439,1.5052,3578.6,3577.5,2.79523]
[1733240173440,0.84672665,3578.5,3577.5,2.79523]
[1733240173634,0.25921828,3578.4,3577.4,3.0]
[1733240173802,2.79471,3578.2,3577.1,5.79553]
[1733240174125,1.5052,3577.5,3576.7,0.55563481]
[1733240174294,0.03494521,3577.4,3575.4,4.45218]
[1733240174495,1.5052,3577.5,3575.5,0.445218]
[1733240174730,2.79533,3577.4,3576.3,2.79614]
[1733240174930,1.5052,3577.5,3575.5,0.445218]
[1733240175138,0.25926226,3577.4,3576.7,2.79586]
[1733240175352,4.30047,3577.5,3576.4,0.56430786]
[1733240175559,0.29585374,3577.4,3576.7,2.79586]
[1733240175721,0.03655142,3577.4,3576.4,0.56430786]
[1733240175920,0.03655142,3577.4,3576.9,2.79568]
[1733240176465,0.03655142,3577.4,3576.7,2.7958]
[1733240176629,0.03655142,3577.4,3576.4,0.56430786]
[1733240176630,0.03655142,3577.4,3576.6,2.79594]
[1733240176830,0.03655142,3577.4,3576.4,0.56430786]
[1733240177220,0.03655142,3577.4,3576.4,3.36032786]
[1733240177514,0.03655142,3577.4,3576.4,0.56430786]
[1733240177744,2.83187142,3577.4,3576.4,0.56430786]
[1733240178013,1.5052,3577.3,3576.4,0.56430786]
[1733240178314,1.5052,3577.3,3575.4,2.79688]
[1733240178315,1.5052,3577.1,3575.5,1.6053]
[1733240178520,0.25989607,3577.0,3576.1,2.79632]
[1733240178765,1.5052,3577.1,3575.6,0.16053]
[1733240178766,0.25989607,3576.9,3576.0,0.55594882]
[1733240179076,0.03493867,3576.9,3576.8,2.79579]
[1733240179420,0.26008176,3577.9,3576.8,1.6387]
[1733240179631,0.26008176,3577.8,3576.8,1.6387]
[1733240179957,1.5052,3578.2,3576.9,0.16387]
[1733240180161,1.5052,3578.2,3577.3,2.7954]
[1733240180327,1.92110332,3578.8,3578.0,2.79484]
[1733240180527,0.88403292,3578.7,3578.2,2.79469]
[1733240180861,0.4681296,3578.6,3578.1,2.7947]
[1733240181063,0.26006902,3578.5,3577.6,2.17181306]
[1733240181229,0.41613049,3578.7,3577.6,2.17181306]
[1733240181230,0.26006902,3578.4,3578.1,2.79477]
[1733240181429,3.89229558,3578.6,3577.6,0.55561306]
[1733240181758,0.46814178,3578.5,3578.2,2.79466]
[1733240181955,0.46814178,3578.5,3577.6,0.55561306]
[1733240181956,0.20807597,3578.7,3577.6,3.55561306]
[1733240182266,0.20807597,3578.7,3577.0,3.0]
[1733240182267,1.5052,3578.5,3577.0,3.0]
[1733240182419,1.5052,3578.1,3577.5,2.79523]
[1733240182618,0.26012522,3578.0,3577.3,0.55443793]
[1733240182885,1.5052,3578.1,3577.2,0.56999443]
[1733240182886,0.26012522,3577.9,3577.2,0.56999443]
[1733240183087,0.26012522,3577.8,3577.2,3.36546443]
[1733240183428,1.5052,3578.1,3577.2,3.36546443]
[1733240183655,0.46856078,3578.0,3577.4,2.79532]
[1733240183934,0.46856078,3578.0,3576.9,2.79566]
[1733240183935,0.46856078,3578.0,3576.9,2.79571]
[1733240184139,0.46856078,3578.0,3576.7,3.0]
[1733240184140,2.82980596,3578.0,3576.7,3.0]
[1733240184433,0.46850256,3577.9,3576.7,3.0]
[1733240184600,0.46850256,3577.8,3576.9,0.57005039]
[1733240184938,0.41650638,3578.0,3577.3,2.79535]
[1733240185089,1.5052,3578.1,3576.9,0.57005039]
[1733240185090,0.46853349,3577.9,3576.9,0.57005039]
[1733240185284,0.03493632,3577.8,3576.1,1.5604]
[1733240185586,1.5052,3576.8,3575.8,2.79651]
[1733240185785,1.5052,3576.8,3576.1,0.56538051]
[1733240186233,0.20827729,3577.1,3577.0,2.79563]
[1733240186393,1.5052,3577.2,3576.7,2.79587]
[1733240186598,0.62488169,3577.5,3577.2,2.79547]
[1733240186831,1.5052,3577.6,3577.2,2.79547]
[1733240187123,1.5052,3577.6,3577.2,2.79544]
[1733240187287,1.5052,3577.6,3576.8,2.79579]
[1733240187483,1.5052,3577.6,3576.7,0.559191]
[1733240187716,1.5052,3577.6,3577.0,2.79556]
[1733240188085,1.5052,3577.6,3577.0,0.54960089]
[1733240188285,1.5052,3577.6,3577.2,2.79541]
[1733240188515,0.26059852,3577.5,3577.4,2.79532]
[1733240188735,1.5052,3577.6,3577.0,0.54960089]
[1733240188942,1.5052,3577.6,3577.1,2.79556]
[1733240189241,1.5052,3577.6,3576.4,4.5371]
[1733240189242,0.4691537,3577.5,3576.8,2.79579]
[1733240189523,0.4691537,3577.5,3575.6,0.16053]
[1733240189524,1.5052,3577.6,3576.9,2.79566]
[1733240189729,1.5052,3577.6,3576.8,2.79573]
[1733240189898,0.26074501,3577.5,3576.8,2.79573]
[1733240190098,0.03401584,3577.5,3576.9,2.7957]
[1733240190308,0.03401584,3577.5,3576.2,3.0]
[1733240190526,0.03401584,3577.5,3575.7,1.5772]
[1733240190527,0.26079068,3577.4,3575.7,1.5772]
[1733240190823,0.06895892,3577.5,3575.7,1.5772]
[1733240190824,1.5052,3577.1,3576.0,0.57159164]
[1733240191030,1.5052,3577.1,3577.0,2.79563]
[1733240191193,0.03377052,3577.0,3576.8,2.79576]
[1733240191393,1.5052,3577.1,3576.8,2.79576]
[1733240191631,0.03373507,3576.9,3576.8,2.79576]
[1733240191946,1.5052,3577.1,3576.1,1.64]
[1733240191947,1.5052,3577.1,3576.4,2.79608]
[1733240192101,0.03280702,3576.9,3576.2,3.0]
[1733240192304,1.5052,3577.6,3577.0,2.79563]
[1733240192491,3.0,3578.2,3576.8,3.0]
[1733240192492,1.9225683,3578.2,3576.8,3.0]
[1733240192845,0.46960707,3578.1,3576.8,3.0]
[1733240192989,0.46960707,3578.0,3577.5,2.79523]
[1733240193183,1.5052,3578.2,3577.5,2.79523]
[1733240193437,0.46980811,3578.1,3577.5,2.79523]
[1733240193600,0.46980811,3578.1,3577.1,2.79551]
[1733240193601,0.03208784,3578.1,3577.6,2.79514]
[1733240193929,0.03208784,3578.1,3577.4,0.55401243]
[1733240194239,0.20883504,3578.4,3577.4,2.07111243]
[1733240194529,1.5052,3578.6,3577.5,0.50711124]
[1733240194530,0.03227198,3578.0,3577.5,0.50711124]
[1733240194686,0.46979436,3578.5,3577.5,0.50711124]
[1733240194892,1.5052,3578.6,3577.6,2.79516]
[1733240195087,0.46970996,3578.5,3577.9,2.79486]
[1733240195536,1.5052,3578.6,3577.9,2.79486]
[1733240195828,0.46961924,3578.5,3577.9,2.79486]
[1733240196028,0.26091615,3578.4,3577.9,2.79486]
[1733240196331,1.5052,3578.6,3577.4,0.55401243]
[1733240196537,2.0552,3578.2,3576.6,1.596]
[1733240196692,0.26090516,3578.1,3577.2,2.79541]
[1733240197034,1.5052,3577.5,3576.6,0.5711872]
[1733240197194,1.5052,3577.3,3577.1,2.79556]
[1733240197388,1.5052,3577.3,3576.9,2.79566]
[1733240197636,0.03210587,3577.2,3577.1,2.79552]
[1733240197940,1.9748216,3577.5,3576.3,2.79618]
[1733240198147,0.03174247,3577.2,3576.8,2.79578]
[1733240198327,0.03181335,3577.4,3576.4,2.79606]
[1733240198643,1.76610316,3577.5,3577.2,2.79548]
[1733240198644,0.03177791,3577.3,3577.2,2.79548]
[1733240198795,1.76610316,3577.5,3577.3,2.79533]
[1733240198989,1.76610316,3577.5,3576.7,2.79581]
[1733240199226,1.76610316,3577.5,3576.4,0.33683661]
[1733240199412,1.76610316,3577.5,3576.6,0.55436527]
[1733240199615,1.76610316,3577.5,3577.4,2.79532]
[1733240200032,1.76610316,3577.5,3576.6,0.55436527]
[1733240200348,1.76610316,3577.5,3577.1,2.79548]
[1733240200495,1.76610316,3577.5,3576.6,0.55436527]
[1733240200894,0.03193448,3577.4,3576.6,0.55436527]
[1733240201099,0.03193448,3577.4,3577.3,2.7954]
[1733240201325,0.26090316,3577.5,3577.4,2.79532]
[1733240202406,0.26090316,3577.5,3577.4,0.56236468]
[1733240202407,1.76610316,3577.5,3577.4,0.56236468]
[1733240202627,1.76610316,3577.5,3576.5,3.0]
[1733240202628,1.31203153,3577.5,3577.0,2.79562]
[1733240202940,1.31203153,3577.5,3576.8,0.55867265]
[1733240203093,1.31203153,3577.5,3577.0,2.79563]
[1733240203302,0.20864665,3578.1,3577.2,2.79548]
[1733240203623,0.26089485,3578.0,3577.6,2.79511]
[1733240203795,0.46959829,3578.2,3577.2,2.79548]
[1733240203995,0.46964439,3578.1,3577.4,2.79527]
[1733240204198,0.46976875,3578.3,3577.2,1.5408]
[1733240204396,0.03119858,3578.0,3577.3,0.18762303]
[1733240204693,0.50474776,3578.5,3577.3,0.18762303]
[1733240204896,0.03116315,3577.9,3577.4,2.79525]
[1733240205209,3.03112773,3577.8,3576.7,2.7958]
[1733240205440,3.03112773,3577.8,3576.4,2.79607]
[1733240205441,2.79533,3577.4,3576.4,2.79607]
[1733240205642,1.312,3577.3,3575.6,4.46293]
[1733240205840,1.312,3577.3,3576.5,2.79602]
[1733240206037,0.03097947,3577.2,3576.5,2.79602]
[1733240206239,0.03097947,3577.2,3576.6,2.7959]
[1733240206469,0.03097947,3577.2,3576.1,0.5640918]
[1733240206666,0.4698178,3577.1,3576.4,2.79604]
[1733240206829,1.312,3576.9,3576.1,0.5640918]
[1733240207031,0.02993192,3577.0,3575.6,1.6662]
[1733240207271,1.312,3577.1,3575.9,0.54663701]
[1733240207430,0.02989648,3576.9,3575.9,0.54663701]
[1733240207632,0.02993192,3577.0,3575.9,0.54663701]
[1733240207966,0.02989648,3576.9,3576.4,2.79604]
[1733240208285,1.312,3577.1,3577.0,2.79563]
[1733240208767,1.78167193,3577.7,3576.4,1.6219]
[1733240208952,0.26092291,3577.6,3577.1,0.01670578]
[1733240209154,1.312,3577.7,3577.4,2.79531]
[1733240209487,0.2609281,3577.6,3577.4,2.79531]
[1733240209708,1.312,3577.7,3577.1,0.01670578]
[1733240209869,1.312,3577.7,3577.6,2.79516]
[1733240210063,1.312,3577.7,3577.1,0.01670578]
[1733240211189,0.03494158,3577.6,3577.1,0.01670578]
[1733240211392,0.55,3577.5,3577.1,0.01670578]
[1733240211692,1.862,3577.2,3577.1,0.01670578]
[1733240212002,1.34205035,3577.2,3577.1,0.01670578]
[1733240212356,1.89205035,3577.2,3577.1,0.01670578]
[1733240213238,0.29103224,3577.2,3577.1,0.01670578]
[1733240213559,1.34205035,3577.2,3577.1,0.01670578]
[1733240214953,2.44901867,3577.2,3577.1,0.01670578]
[1733240215152,2.41407273,3577.2,3577.1,0.01670578]
[1733240215359,1.89205035,3577.2,3577.1,0.01670578]
[1733240215513,2.41450543,3577.2,3577.1,0.01670578]
[1733240215862,5.2449335,3577.2,3577.1,0.01670578]
[1733240216150,9.28975153,3577.2,3577.1,0.01670578]
[1733240216356,9.25480346,3577.2,3577.1,0.01670578]
[1733240216795,0.55,3575.9,3574.7,1.5167]
[1733240216919,0.55,3575.9,3574.1,5.7226332]
[1733240216920,4.44061397,3575.9,3574.8,0.15167]
[1733240217118,0.55,3575.7,3575.0,0.56184143]
[1733240217318,0.02817975,3575.8,3575.0,0.56184143]
[1733240217552,0.02810881,3575.6,3575.0,0.56184143]
[1733240217770,0.02780342,3575.7,3575.0,0.56184143]
[1733240217922,1.312,3576.0,3575.4,2.79688]
[1733240217923,0.02773247,3575.5,3575.4,2.79688]
[1733240218130,1.312,3576.0,3575.5,2.79681]
[1733240218131,0.02776794,3575.6,3575.5,2.79681]
[1733240218350,0.55,3575.9,3575.5,2.7968]
[1733240218555,1.312,3576.5,3575.8,2.79657]
[1733240218862,1.312,3576.5,3576.2,2.79624]
[1733240218863,0.02805167,3576.4,3576.2,2.79624]
[1733240219071,0.02805167,3576.4,3575.4,0.279688]
[1733240219222,0.02805167,3576.4,3575.5,0.1929088]
[1733240219421,0.02805167,3576.4,3575.7,2.79664]
[1733240219923,0.57805167,3576.4,3575.9,2.79648]
[1733240220123,0.57805167,3576.4,3575.7,2.79663]
[1733240220322,1.312,3576.1,3574.4,1.5155]
[1733240220530,0.55,3576.2,3574.0,2.79797]
[1733240220531,0.55,3575.3,3574.0,1.5155]
[1733240220733,3.89061397,3575.4,3574.0,1.5155]
[1733240220734,1.312,3575.0,3574.0,1.5155]
[1733240220970,1.312,3575.0,3574.3,2.79768]
[1733240220971,0.55,3574.9,3574.3,2.79768]
[1733240221175,0.55,3574.7,3573.7,2.79822]
[1733240221340,0.55,3574.7,3574.0,2.79796]
[1733240221544,1.862,3574.5,3573.4,2.79839]
[1733240221733,0.55,3574.3,3573.4,0.446339]
[1733240222070,0.02665371,3574.2,3572.8,1.665]
[1733240222229,0.57665371,3574.2,3572.8,1.665]
[1733240222434,0.57665371,3574.2,3573.6,0.54645022]
[1733240222435,0.55,3574.0,3573.6,0.54645022]
[1733240222633,0.55,3574.0,3572.8,1.665]
[1733240222948,0.55,3574.0,3573.1,0.56917234]
[1733240223144,0.55,3574.0,3573.4,2.79845]
[1733240223348,3.03497609,3574.7,3572.8,2.79891]
[1733240223349,1.862,3573.8,3572.8,2.79891]
[1733240223659,0.55,3573.6,3572.7,2.79894]
[1733240223847,0.55,3573.4,3572.8,2.79892]
[1733240224047,0.55,3573.4,3571.2,0.36222416]
[1733240224048,0.55,3573.4,3572.5,2.79916]
[1733240224260,1.312,3574.6,3573.3,1.6525]
[1733240224459,1.312,3574.6,3573.9,2.79804]
[1733240224661,1.312,3574.6,3573.4,2.79845]
[1733240224985,0.03496969,3574.5,3573.9,2.79801]
[1733240225206,1.312,3574.6,3573.3,4.6525]
[1733240225492,1.312,3574.6,3573.7,2.79819]
[1733240225788,1.312,3574.6,3574.2,2.79782]
[1733240225942,1.312,3574.6,3574.0,2.79797]
[1733240226149,1.312,3574.6,3573.4,0.745108]
[1733240226150,1.312,3574.6,3574.1,2.79788]
[1733240226643,1.312,3574.6,3573.4,0.745108]
[1733240226844,1.312,3574.6,3573.5,0.59663677]
[1733240227081,1.312,3574.6,3574.2,2.79776]
[1733240227384,1.312,3574.6,3574.1,2.79789]
[1733240227596,1.312,3574.6,3574.2,2.7978]
[1733240227743,1.312,3574.6,3574.5,2.79759]
[1733240227939,1.312,3575.3,3574.5,0.279759]
[1733240228360,0.25878871,3575.4,3574.5,0.82645373]
[1733240228557,0.25878871,3575.4,3575.3,2.79696]
[1733240228843,0.25878871,3575.4,3574.6,3.0]
[1733240229046,0.25878871,3575.4,3575.0,2.79714]
[1733240229268,0.25878871,3575.4,3574.7,2.79738]
[1733240229441,0.25878871,3575.4,3575.3,2.79696]
[1733240230748,0.25878871,3575.4,3574.7,0.6077139]
[1733240230947,0.25878871,3575.4,3574.5,0.279759]
[1733240230948,2.79712,3575.1,3574.0,2.79791]
[1733240231272,1.312,3575.3,3574.3,2.79772]
[1733240231482,1.312,3575.3,3574.0,2.79797]
[1733240231783,1.312,3575.3,3573.8,1.5744]
[1733240232010,1.312,3575.3,3575.2,2.79704]
[1733240232165,0.25878871,3575.4,3574.4,2.79766]
[1733240232365,0.03496019,3575.3,3574.7,2.79741]
[1733240232612,0.25878871,3575.4,3574.7,2.79741]
[1733240232905,0.55,3575.2,3574.4,2.79763]
[1733240233127,1.312,3574.9,3573.9,0.56141784]
[1733240233317,1.312,3574.9,3574.5,2.79759]
[1733240233465,1.312,3574.9,3574.0,2.79798]
[1733240233670,1.312,3574.9,3574.1,0.33593978]
[1733240233977,1.312,3574.9,3573.8,0.56438475]
[1733240234176,1.312,3574.9,3574.2,2.79776]
[1733240234412,0.5849666,3574.8,3573.7,2.7982]
[1733240234721,0.55,3574.6,3573.7,2.7982]
[1733240234866,0.55,3574.4,3573.0,1.5191]
[1733240235071,1.862,3574.2,3573.2,2.79854]
[1733240235366,0.55,3573.7,3572.2,1.5199]
[1733240235683,0.55,3573.3,3571.7,1.5199]
[1733240235884,0.55,3573.1,3572.7,2.79893]
[1733240236273,0.55,3573.3,3572.7,2.79893]
[1733240236612,0.55,3573.1,3571.7,1.5199]
[1733240236819,0.55,3572.7,3571.7,0.431973]
[1733240237027,0.55,3572.7,3572.1,2.79944]
[1733240237514,0.55,3572.7,3571.3,1.5098]
[1733240237821,0.58498976,3572.7,3571.7,2.79978]
[1733240237968,1.73142984,3574.0,3572.3,1.5438]
[1733240237969,1.312,3573.3,3572.3,1.5438]
[1733240238169,1.312,3573.9,3572.6,3.0]
[1733240238407,0.4133391,3574.0,3572.9,8.59768]
[1733240238615,0.4133391,3574.0,3573.3,2.07673397]
[1733240238768,0.4133391,3574.0,3572.8,2.79892]
[1733240238769,0.4133391,3574.0,3572.7,2.25740103]
[1733240238970,1.312,3573.8,3572.7,3.53439103]
[1733240239171,1.312,3573.8,3572.3,3.0]
[1733240239172,1.312,3573.8,3572.5,2.7991]
[1733240239442,1.312,3573.8,3573.5,2.79836]
[1733240239732,1.312,3574.8,3573.0,2.79876]
[1733240240017,1.312,3574.8,3573.1,1.522]
[1733240240522,0.25853076,3574.7,3573.3,2.79853]
[1733240240685,1.57053076,3575.2,3574.6,2.79744]
[1733240241016,1.57053076,3575.2,3574.3,2.7977]
[1733240241017,1.312,3575.2,3574.7,2.7974]
[1733240241169,1.312,3575.2,3574.1,1.522]
[1733240241370,1.312,3575.2,3574.5,2.79751]
[1733240241617,1.312,3575.2,3574.5,2.79758]
[1733240242110,0.55,3575.1,3574.5,2.79758]
[1733240242468,0.55,3575.1,3574.1,4.31986]